lending/lending_fUSD_20250819
["ID","MTS","AMOUNT","RATE_DAILY","PERIOD"]
[380143407,1755573047743,-1016.559654,9.948e-05,2]
[380143408,1755573047753,-1016.559654,9.948e-05,2]
[380143409,1755573047762,-2102.353886,9.948e-05,2]
[380143411,1755573047772,-1016.559654,9.948e-05,2]
[380143413,1755573047782,-2102.353886,9.948e-05,2]
[380143415,1755573047791,-1016.559654,9.948e-05,2]
[380143417,1755573047801,-1016.559654,9.948e-05,2]
[380143419,1755573047810,-1016.559654,9.948e-05,2]
[380143421,1755573047819,-1016.559654,9.948e-05,2]
[380143423,1755573047828,-1016.559654,9.948e-05,2]
[380143425,1755573047838,-1016.559654,9.948e-05,2]
[380143427,1755573047847,-1016.559654,9.948e-05,2]
[380143429,1755573047857,-1016.559654,9.948e-05,2]
[380143431,1755573047867,-177.418402,9.948e-05,2]
[380143433,1755573047877,-1016.559654,9.948e-05,2]
[380143435,1755573047887,-177.418402,9.948e-05,2]
[380143437,1755573047897,-1016.559654,9.948e-05,2]
[380143439,1755573047907,-177.418402,9.948e-05,2]
[380143441,1755573047917,-177.418402,9.948e-05,2]
[380143443,1755573047927,-1016.559654,9.948e-05,2]
[380143445,1755573047937,-1016.559651,9.948e-05,2]
[380143447,1755573047947,-177.418402,9.948e-05,2]
[380143449,1755573047957,-177.418402,9.948e-05,2]
[380143451,1755573047967,-177.418402,9.948e-05,2]
[380143453,1755573047977,-177.418402,9.948e-05,2]
[380143455,1755573047986,-2102.353886,9.948e-05,2]
[380143457,1755573047995,-177.418402,9.948e-05,2]
[380143459,1755573048006,-2102.353886,9.948e-05,2]
[380143461,1755573048015,-151.0,9.948e-05,2]
[380143463,1755573048025,-177.418402,9.948e-05,2]
[380143465,1755573048034,-151.0,9.948e-05,2]
[380143467,1755573048044,-2102.353886,9.948e-05,2]
[380143469,1755573048053,-177.418402,9.948e-05,2]
[380143471,1755573048063,-151.0,9.948e-05,2]
[380143473,1755573048072,-2102.353886,9.948e-05,2]
[380143475,1755573048082,-177.418402,9.948e-05,2]
[380143477,1755573048092,-151.305538,9.948e-05,2]
[380143479,1755573048101,-2102.353886,9.948e-05,2]
[380143481,1755573048111,-177.418402,9.948e-05,2]
[380143483,1755573048120,-2102.353886,9.948e-05,2]
[380143485,1755573048130,-177.418402,9.948e-05,2]
[380143487,1755573048140,-177.418402,9.948e-05,2]
[380143489,1755573048150,-2102.353886,9.948e-05,2]
[380143491,1755573048160,-177.418402,9.948e-05,2]
[380143493,1755573048169,-2102.353886,9.948e-05,2]
[380143495,1755573048179,-177.418402,9.948e-05,2]
[380143497,1755573048191,-2102.353886,9.948e-05,2]
[380143499,1755573048200,-2102.353886,9.948e-05,2]
[380143501,1755573048210,-177.418402,9.948e-05,2]
[380143503,1755573048219,-2102.353886,9.948e-05,2]
[380143505,1755573048229,-177.418402,9.948e-05,2]
[380143507,1755573048238,-2102.353876,9.948e-05,2]
[380143509,1755573048248,-177.418404,9.948e-05,2]
[380143511,1755573048257,-1233.0,9.948e-05,2]
[380143513,1755573048267,-250.9690074,9.948e-05,2]
[380143515,1755573048276,-151.0,9.948e-05,2]
[380143517,1755573048285,-151.0,9.948e-05,2]
[380143519,1755573048294,-185.435902,9.948e-05,2]
[380143521,1755573048303,-151.0,9.948e-05,2]
[380143523,1755573048313,-151.0,9.948e-05,2]
[380143525,1755573048325,-151.404707,9.948e-05,2]
[380143527,1755573048334,-178.071968,9.948e-05,2]
[380143529,1755573048344,-178.071968,9.948e-05,2]
[380143532,1755573048354,-178.071968,9.948e-05,2]
[380143534,1755573048364,-151.0,9.948e-05,2]
[380143536,1755573048377,-178.071968,9.948e-05,2]
[380143538,1755573048389,-151.0,9.948e-05,2]
[380143540,1755573048399,-2524.683356,9.948e-05,2]
[380143542,1755573048409,-178.071968,9.948e-05,2]
[380143544,1755573048419,-2524.683356,9.948e-05,2]
[380143546,1755573048428,-151.0,9.948e-05,2]
[380143548,1755573048437,-178.071968,9.948e-05,2]
[380143550,1755573048450,-2524.683356,9.948e-05,2]
[380143552,1755573048459,-151.0,9.948e-05,2]
[380143554,1755573048469,-178.071968,9.948e-05,2]
[380143556,1755573048479,-2524.683356,9.948e-05,2]
[380143558,1755573048489,-260.911984,9.948e-05,2]
[380143560,1755573048499,-2524.683356,9.948e-05,2]
[380143562,1755573048509,-2524.683356,9.948e-05,2]
[380143564,1755573048519,-178.071968,9.948e-05,2]
[380143566,1755573048529,-2524.683356,9.948e-05,2]
[380143568,1755573048540,-178.071968,9.948e-05,2]
[380143570,1755573048550,-2524.683356,9.948e-05,2]
[380143572,1755573048560,-178.071968,9.948e-05,2]
[380143606,1755573048876,-2524.683356,9.948e-05,2]
[380143608,1755573048887,-2524.683356,9.948e-05,2]
[380143610,1755573048897,-178.071968,9.948e-05,2]
[380143612,1755573048907,-2524.683356,9.948e-05,2]
[380143614,1755573048916,-178.071968,9.948e-05,2]
[380143616,1755573048925,-152.618858,9.948e-05,2]
[380143618,1755573048935,-2524.683356,9.948e-05,2]
[380143620,1755573048948,-178.071968,9.948e-05,2]
[380143622,1755573048959,-109.809506,9.948e-05,2]
[380143631,1755573049030,-2414.87385,9.948e-05,2]
[380143633,1755573049040,-178.071968,9.948e-05,2]
[380143635,1755573049050,-2524.683356,9.948e-05,2]
[380143637,1755573049061,-178.071968,9.948e-05,2]
[380143639,1755573049071,-2524.683356,9.948e-05,2]
[380143641,1755573049082,-178.071968,9.948e-05,2]
[380143643,1755573049092,-2524.683356,9.948e-05,2]
[380143645,1755573049102,-178.071968,9.948e-05,2]
[380143647,1755573049113,-1242.29900933,9.948e-05,2]
[380143769,1755573050324,-589.10033098,9.948e-05,2]
[380143771,1755573050335,-693.28401569,9.948e-05,2]
[380143773,1755573050346,-178.071968,9.948e-05,2]
[380143775,1755573050355,-218.18976643,9.948e-05,2]
[380143777,1755573050367,-232.15416957,9.948e-05,2]
[380143779,1755573050381,-178.071968,9.948e-05,2]
[380143781,1755573050390,-450.343936,9.948e-05,2]
[380143783,1755573050400,-178.071969,9.948e-05,2]
[380143785,1755573050411,-1786.64240385,9.948e-05,2]
[380143792,1755573050472,-738.04095215,9.948e-05,2]
[380143794,1755573050481,-450.343936,9.948e-05,2]
[380143796,1755573050490,-929.45025175,9.948e-05,2]
[380143799,1755573050502,-1595.23310425,9.948e-05,2]
[380143801,1755573050512,-450.343936,9.948e-05,2]
[380143803,1755573050521,-2524.68335,9.948e-05,2]
[380143805,1755573050531,-53.93960976,9.948e-05,2]
[380144886,1755573064137,560.0,0.00013,10]
[380145108,1755573091313,450.44,0.00013,10]
[380145109,1755573110345,-1137.3357127,9.527e-05,2]
[380145110,1755573146483,1000.0,6e-07,120]
[380145111,1755573154376,1000.0,6e-07,120]
[380145112,1755573161828,1000.0,6e-07,120]
[380145113,1755573170405,1000.0,6e-07,120]
[380145114,1755573178017,500.0,6e-07,120]
[380145115,1755573233800,150.0,7e-05,2]
[380145116,1755573234204,150.0,8.18e-05,2]
[380145117,1755573234616,150.0,9.37e-05,2]
[380145118,1755573281449,500.0,6e-07,120]
[380145119,1755573289977,500.0,6e-07,120]
[380145120,1755573298047,500.0,6e-07,120]
[380145121,1755573313315,8910.84,9.087e-05,2]
[380145122,1755573315912,500.0,6e-07,120]
[380145123,1755573324345,500.0,6e-07,120]
[380145124,1755573333016,500.0,6e-07,120]
[380145125,1755573339690,500.0,6e-07,120]
[380145126,1755573349209,394.0,6e-07,120]
[380145127,1755573418228,1000.0,6e-07,120]
[380145129,1755573426331,1000.0,6e-07,120]
[380145130,1755573434300,1000.0,6e-07,120]
[380145131,1755573441307,1000.0,6e-07,120]
[380145132,1755573448854,1000.0,6e-07,120]
[380145133,1755573456752,1000.0,6e-07,120]
[380145134,1755573464527,1000.0,6e-07,120]
[380145135,1755573471705,1000.0,6e-07,120]
[380145136,1755573478874,1000.0,6e-07,120]
[380145137,1755573484001,150.0,6.6e-07,2]
[380145138,1755573486348,1000.0,6e-07,120]
[380145139,1755573495289,1000.0,6e-07,120]
[380145140,1755573506048,1000.0,6e-07,120]
[380145141,1755573515756,1000.0,8.173e-05,2]
[380145142,1755573516583,250.0,6e-07,120]
[380145143,1755573599478,1000.0,6e-07,120]
[380145144,1755573607754,1000.0,6e-07,120]
[380145145,1755573615083,1000.0,6e-07,120]
[380145146,1755573623485,1000.0,6e-07,120]
[380145147,1755573624365,173.80898851,0.00012117,10]
[380145148,1755573624794,173.80898851,0.00012708,12]
[380145149,1755573629104,1000.0,6e-07,120]
[380145150,1755573637052,1000.0,6e-07,120]
[380145151,1755573643220,1000.0,6e-07,120]
[380145152,1755573647083,250.0,9.043e-05,2]
[380145153,1755573650338,1000.0,6e-07,120]
[380145154,1755573659446,1000.0,6e-07,120]
[380145155,1755573669539,1000.0,6e-07,120]
[380145156,1755573676168,1000.0,6e-07,120]
[380145157,1755573685991,646.0,6e-07,120]
[380145158,1755573700347,921.6,9.02e-05,2]
[380145159,1755573700561,921.6,9.025e-05,2]
[380145160,1755573700991,921.6,9.03e-05,2]
[380145161,1755573701505,921.6,9.034e-05,2]
[380145162,1755573702800,921.6,9.039e-05,2]
[380145163,1755573703042,921.6,9.044e-05,2]
[380145164,1755573703192,921.6,9.049e-05,2]
[380145165,1755573703299,921.6,9.053e-05,2]
[380145166,1755573703406,921.6,9.058e-05,2]
[380145167,1755573703508,921.6,9.063e-05,2]
[380145168,1755573704152,921.6,9.068e-05,2]
[380145169,1755573704356,921.6,9.072e-05,2]
[380145170,1755573704416,921.6,9.077e-05,2]
[380145171,1755573704510,921.6,9.082e-05,2]
[380145172,1755573704599,921.6,9.086e-05,2]
[380145173,1755573705098,921.6,9.091e-05,2]
[380145174,1755573705301,921.6,9.096e-05,2]
[380145175,1755573705413,921.6,9.101e-05,2]
[380145176,1755573705589,921.6,9.105e-05,2]
[380145177,1755573705791,921.6,9.11e-05,2]
[380145178,1755573747352,1499.35,9.002e-05,2]
[380145179,1755573777590,150.0,6e-05,2]
[380145180,1755573778013,150.0,7.18e-05,2]
[380145181,1755573778381,150.0,8.37e-05,2]
[380145182,1755573783254,1000.0,8.995e-05,2]
[380145183,1755573846431,-427.0,9.502e-05,2]
[380145184,1755573872622,519.89,8.998e-05,2]
[380145185,1755573915977,1004.802902,9.454e-05,2]
[380145186,1755573950201,1000.0,6e-07,120]
[380145187,1755573957698,1000.0,6e-07,120]
[380145188,1755573966743,1000.0,6e-07,120]
[380145189,1755573976788,1000.0,6e-07,120]
[380145190,1755573986040,1000.0,6e-07,120]
[380145191,1755573995194,1000.0,6e-07,120]
[380145192,1755574003500,1000.0,6e-07,120]
[380145193,1755574011504,1000.0,6e-07,120]
[380145194,1755574020340,356.0,6e-07,120]
[380145197,1755574041886,153.88,8.971e-05,2]
[380145199,1755574087246,1000.0,6e-07,120]
[380145200,1755574093412,1000.0,6e-07,120]
[380145201,1755574101352,1000.0,6e-07,120]
[380145202,1755574110545,1000.0,6e-07,120]
[380145203,1755574118506,1027.0,6e-07,120]
[380145204,1755574126493,436.93,8.944e-05,2]
[380145244,1755574232730,-150.0,9.55e-05,2]
[380145245,1755574232747,-250.0,9.556e-05,2]
[380145246,1755574232760,-91.21978248,9.563e-05,2]
[380145247,1755574233851,-919.43646985,9.563e-05,2]
[380145303,1755574238727,-989.34374767,9.563e-05,2]
[380145304,1755574238737,-500.0,9.575e-05,2]
[380145305,1755574238747,-168.23774886,9.749e-05,2]
[380145306,1755574238758,-1000.0,9.75e-05,2]
[380145307,1755574238768,-170.0,9.836e-05,7]
[380145308,1755574238777,-277.35679052,9.842e-05,2]
[380145309,1755574238787,-1200.0,9.847e-05,2]
[380145310,1755574238797,-1307.68486307,9.848e-05,2]
[380145313,1755574238818,-875.65385162,9.848e-05,2]
[380145320,1755574238870,-4270.78908531,9.848e-05,2]
[380145322,1755574238880,-5000.0,9.848e-05,2]
[380145324,1755574238890,-213.26028519,9.848e-05,2]
[380145326,1755574238900,-999.99,9.849e-05,2]
[380145328,1755574238912,-1650.65,9.849e-05,2]
[380145330,1755574238923,-150.0,9.849e-05,2]
[380145332,1755574238933,-165.98,9.85e-05,2]
[380145335,1755574238943,-165.96,9.85e-05,2]
[380145337,1755574238953,-468.71,9.85e-05,2]
[380145339,1755574238963,-165.96,9.85e-05,2]
[380145341,1755574238974,-1651.7,9.85e-05,2]
[380145343,1755574238983,-468.71,9.85e-05,2]
[380145345,1755574238993,-165.96,9.85e-05,2]
[380145347,1755574239003,-300.0,9.85e-05,2]
[380145349,1755574239013,-150.99,9.85e-05,2]
[380145351,1755574239023,-2329.47,9.85e-05,2]
[380145353,1755574239032,-352.54,9.85e-05,2]
[380145355,1755574239042,-165.96,9.85e-05,2]
[380145357,1755574239051,-468.71,9.85e-05,2]
[380145359,1755574239062,-165.96,9.85e-05,2]
[380145361,1755574239071,-468.71,9.85e-05,2]
[380145363,1755574239081,-150.11349931,9.888e-05,2]
[380145365,1755574239091,-150.0,9.888e-05,2]
[380145367,1755574239100,-150.0,9.888e-05,2]
[380145369,1755574239110,-150.0,9.888e-05,2]
[380145372,1755574239120,-150.39295428,9.888e-05,2]
[380145374,1755574239129,-150.0,9.888e-05,2]
[380145376,1755574239139,-150.0,9.888e-05,2]
[380145378,1755574239148,-150.0,9.888e-05,2]
[380145380,1755574239157,-150.0,9.888e-05,2]
[380145382,1755574239167,-175.58298766,9.888e-05,2]
[380145384,1755574239177,-151.52271267,9.888e-05,2]
[380145386,1755574239186,-150.0,9.888e-05,2]
[380145388,1755574239196,-150.0,9.888e-05,2]
[380145390,1755574239205,-150.0,9.888e-05,2]
[380145392,1755574239216,-331.92,9.89e-05,2]
[380145394,1755574239227,-468.71,9.89e-05,2]
[380145396,1755574239236,-887.0,9.898e-05,2]
[380145398,1755574239246,-2800.0,9.9e-05,3]
[380145400,1755574239255,-256.0,9.907e-05,2]
[380145402,1755574239266,-500.0,9.923e-05,2]
[380145404,1755574239275,-500.0,9.923e-05,2]
[380145407,1755574239285,-500.0,9.923e-05,2]
[380145409,1755574239295,-500.0,9.923e-05,2]
[380145411,1755574239304,-500.38738598,9.923e-05,2]
[380145413,1755574239313,-487.77535426,9.923e-05,2]
[380145415,1755574239322,-500.0,9.923e-05,2]
[380145417,1755574239331,-500.0,9.923e-05,2]
[380145419,1755574239341,-500.0,9.923e-05,2]
[380145421,1755574239350,-500.68467601,9.923e-05,2]
[380145423,1755574239359,-500.0,9.923e-05,2]
[380145425,1755574239368,-300.0,9.925e-05,2]
[380145427,1755574239378,-216.71770106,9.937e-05,2]
[380145429,1755574239387,-293.762,9.94e-05,2]
[380145431,1755574239396,-703.8939807,9.941e-05,2]
[380145433,1755574239405,-160.0,9.942e-05,2]
[380145435,1755574239414,-300.0,9.942e-05,2]
[380145437,1755574239424,-1029.7,9.947e-05,2]
[380145439,1755574239433,-1036.0,9.948e-05,2]
[380145441,1755574239443,-150.0,9.948e-05,2]
[380145443,1755574239452,-151.0,9.948e-05,2]
[380145445,1755574239461,-151.0,9.948e-05,2]
[380145447,1755574239473,-151.0,9.948e-05,2]
[380145449,1755574239482,-151.0,9.948e-05,2]
[380145451,1755574239491,-151.0,9.948e-05,2]
[380145453,1755574239500,-151.0,9.948e-05,2]
[380145455,1755574239510,-151.0,9.948e-05,2]
[380145457,1755574239519,-151.0,9.948e-05,2]
[380145459,1755574239529,-151.0,9.948e-05,2]
[380145461,1755574239539,-151.0,9.948e-05,2]
[380145463,1755574239548,-151.0,9.948e-05,2]
[380145465,1755574239558,-151.0,9.948e-05,2]
[380145468,1755574239570,-167.40312347,9.948e-05,2]
[380145470,1755574239579,-151.0,9.948e-05,2]
[380145472,1755574239588,-151.0,9.948e-05,2]
[380145474,1755574239598,-151.0,9.948e-05,2]
[380145476,1755574239607,-150.0,9.948e-05,2]
[380145478,1755574239617,-500.0,9.948e-05,2]
[380145480,1755574239626,-150.0,9.948e-05,2]
[380145482,1755574239635,-500.0,9.948e-05,2]
[380145484,1755574239646,-150.0,9.948e-05,2]
[380145486,1755574239655,-500.0,9.948e-05,2]
[380145488,1755574239664,-150.0,9.948e-05,2]
[380145490,1755574239674,-500.0,9.948e-05,2]
[380145492,1755574239684,-151.0,9.948e-05,2]
[380145494,1755574239693,-151.0,9.948e-05,2]
[380145496,1755574239702,-151.0,9.948e-05,2]
[380145498,1755574239711,-151.0,9.948e-05,2]
[380145501,1755574239722,-151.0,9.948e-05,2]
[380145503,1755574239731,-151.0,9.948e-05,2]
[380145505,1755574239743,-151.0,9.948e-05,2]
[380145507,1755574239752,-274.45087,9.948e-05,2]
[380145509,1755574239762,-151.0,9.948e-05,2]
[380145511,1755574239773,-151.0,9.948e-05,2]
[380145513,1755574239783,-151.0,9.948e-05,2]
[380145515,1755574239792,-203.046486,9.948e-05,2]
[380145517,1755574239802,-151.0,9.948e-05,2]
[380145519,1755574239811,-151.0,9.948e-05,2]
[380145521,1755574239821,-151.0,9.948e-05,2]
[380145523,1755574239830,-151.0,9.948e-05,2]
[380145525,1755574239840,-164.464814,9.948e-05,2]
[380145527,1755574239849,-500.0,9.948e-05,2]
[380145530,1755574239859,-144.29897329,9.948e-05,2]
[380145532,1755574239876,-344.13284171,9.948e-05,2]
[380145534,1755574239885,-488.431815,9.948e-05,2]
[380145536,1755574239894,-26.60915329,9.948e-05,2]
[380145540,1755574239918,-461.82266171,9.948e-05,2]
[380145542,1755574239927,-488.431815,9.948e-05,2]
[380145544,1755574239936,-122.09552329,9.948e-05,2]
[380145555,1755574240031,-366.33629171,9.948e-05,2]
[380145557,1755574240043,-9.40206335,9.948e-05,2]
[380145633,1755574240808,-479.02975165,9.948e-05,2]
[380145635,1755574240818,-55.35510666,9.948e-05,2]
[380145642,1755574240870,-433.07670834,9.948e-05,2]
[380145644,1755574240880,-488.431815,9.948e-05,2]
[380145646,1755574240889,-234.79147666,9.948e-05,2]
[380145972,1755574244301,-316.47585874,9.848e-05,2]
[380145974,1755574244311,-253.64033834,9.948e-05,2]
[380145976,1755574244320,-488.431815,9.948e-05,2]
[380145978,1755574244329,-488.431815,9.948e-05,2]
[380145980,1755574244339,-488.431815,9.948e-05,2]
[380145982,1755574244348,-488.431815,9.948e-05,2]
[380145984,1755574244357,-488.431815,9.948e-05,2]
[380145986,1755574244366,-488.431815,9.948e-05,2]
[380145988,1755574244375,-488.431815,9.948e-05,2]
[380145990,1755574244384,-488.431815,9.948e-05,2]
[380145992,1755574244395,-488.431815,9.948e-05,2]
[380145994,1755574244404,-488.431815,9.948e-05,2]
[380145996,1755574244413,-488.431812,9.948e-05,2]
[380145999,1755574244425,-467.138661,9.948e-05,2]
[380146001,1755574244434,-467.138661,9.948e-05,2]
[380146003,1755574244449,-63.78001968,9.948e-05,2]
[380146005,1755574244462,-403.35864132,9.948e-05,2]
[380146007,1755574244472,-467.138661,9.948e-05,2]
[380146009,1755574244481,-467.138661,9.948e-05,2]
[380146011,1755574244490,-467.138661,9.948e-05,2]
[380146013,1755574244499,-467.138661,9.948e-05,2]
[380146015,1755574244508,-467.138661,9.948e-05,2]
[380146017,1755574244517,-467.138661,9.948e-05,2]
[380146019,1755574244527,-467.138661,9.948e-05,2]
[380146021,1755574244536,-467.138661,9.948e-05,2]
[380146023,1755574244545,-467.138661,9.948e-05,2]
[380146025,1755574244554,-103.18801555,9.948e-05,2]
[380146038,1755574244659,-252.9607451,9.948e-05,2]
[380146271,1755574246958,-165.96,9.84e-05,2]
[380146273,1755574246969,-110.98990035,9.948e-05,2]
[380146275,1755574246979,-467.138661,9.948e-05,2]
[380146278,1755574246989,-467.138661,9.948e-05,2]
[380146279,1755574246998,-467.138661,9.948e-05,2]
[380146281,1755574247008,-466.10562833,9.948e-05,2]
[380146284,1755574247019,-1.03303267,9.948e-05,2]
[380146286,1755574247029,-467.138661,9.948e-05,2]
[380146288,1755574247038,-289.45892829,9.948e-05,2]
[380146290,1755574247049,-177.67973271,9.948e-05,2]
[380146292,1755574247058,-467.13867,9.948e-05,2]
[380146294,1755574247068,-151.0,9.948e-05,2]
[380146296,1755574247077,-151.0,9.948e-05,2]
[380146298,1755574247087,-151.0,9.948e-05,2]
[380146300,1755574247097,-151.0,9.948e-05,2]
[380146302,1755574247107,-154.210206,9.948e-05,2]
[380146304,1755574247117,-154.154105,9.948e-05,2]
[380146306,1755574247126,-167.318852,9.948e-05,2]
[380146308,1755574247136,-151.0,9.948e-05,2]
[380146310,1755574247147,-151.0,9.948e-05,2]
[380146312,1755574247156,-151.0,9.948e-05,2]
[380146314,1755574247166,-151.0,9.948e-05,2]
[380146316,1755574247176,-151.612351,9.948e-05,2]
[380146318,1755574247185,-98.34958619,9.948e-05,2]
[380146324,1755574247327,-761.25738331,9.948e-05,2]
[380146329,1755574247368,-70.3930305,9.948e-05,2]
[380146331,1755574247377,-20.14881382,9.948e-05,2]
[380146350,1755574247550,-130.54995991,9.948e-05,2]
[380146352,1755574247560,-151.171588,9.948e-05,2]
[380146354,1755574247570,-357.578169,9.948e-05,2]
[380146356,1755574247580,-357.578169,9.948e-05,2]
[380146358,1755574247590,-357.578169,9.948e-05,2]
[380146360,1755574247599,-357.578169,9.948e-05,2]
[380146361,1755574247608,-150.0,9.948e-05,2]
[380146362,1755574247618,-357.578169,9.948e-05,2]
[380146364,1755574247627,-201.54112409,9.948e-05,2]
[380146367,1755574247640,-156.03704491,9.948e-05,2]
[380146368,1755574247650,-191.10778405,9.948e-05,2]
[380146377,1755574247729,-166.47038495,9.948e-05,2]
[380146379,1755574247739,-310.47392547,9.948e-05,2]
[380146398,1755574259806,152.42,9.34e-05,2]
[380146399,1755574306465,150.0,6.9e-05,2]
[380146400,1755574306971,150.0,8.08e-05,2]
[380146401,1755574307363,150.0,9.27e-05,2]
[380146402,1755574483580,634.74537841,9.498e-05,2]
[380146404,1755574838113,150.0,5.9e-05,2]
[380146405,1755574838340,150.0,7.08e-05,2]
[380146406,1755574838603,150.0,8.27e-05,2]
[380146407,1755574839200,150.0,9.45e-05,2]
[380146409,1755574936502,1000.0,9.061e-05,2]
[380146411,1755575171395,161.0,9.4e-05,2]
[380146412,1755575175600,218.46,9.034e-05,2]
[380146413,1755575189355,161.0,9.4e-05,2]
[380146415,1755575211658,162.0,9.4e-05,2]
[380146416,1755575232085,159.0,9.4e-05,2]
[380146417,1755575232726,159.0,9.4e-05,2]
[380146418,1755575232970,159.0,9.4e-05,2]
[380146420,1755575237310,159.0,9.4e-05,2]
[380146422,1755575248449,159.0,9.4e-05,2]
[380146423,1755575302637,159.0,9.4e-05,3]
[380146424,1755575314747,164.64,9.4e-05,3]
[380146426,1755575366307,150.0,4.9e-05,2]
[380146427,1755575366882,150.0,6.08e-05,2]
[380146428,1755575368675,150.0,7.27e-05,2]
[380146429,1755575368987,150.0,8.45e-05,2]
[380146437,1755575432046,-150.0,9.63e-05,2]
[380146438,1755575432056,-4898.0,9.8e-05,2]
[380146442,1755575436252,-269.48845152,9.582e-05,2]
[380146444,1755575436263,-118.76915448,9.582e-05,2]
[380146446,1755575436274,-102.0,9.8e-05,2]
[380146448,1755575436283,-170.0,9.836e-05,7]
[380146450,1755575436292,-50.90872304,9.842e-05,2]
[380146452,1755575436305,-226.44806748,9.842e-05,2]
[380146453,1755575436315,-389.60578147,9.846e-05,2]
[380146454,1755575436326,-425.5,9.846e-05,2]
[380146456,1755575436354,-384.89421853,9.846e-05,2]
[380146457,1755575436363,-221.53310111,9.847e-05,2]
[380146459,1755575436373,-150.0,9.847e-05,2]
[380146461,1755575436382,-143.57268036,9.848e-05,2]
[380146464,1755575436394,-12672.0,9.848e-05,2]
[380146466,1755575436405,-1508.40480003,9.848e-05,2]
[380146474,1755575437979,-479.2401407,9.848e-05,2]
[380146475,1755575438049,-363.50002513,9.848e-05,2]
[380146476,1755575438061,-2316.43050545,9.848e-05,2]
[380146477,1755575438072,-274.22250558,9.848e-05,2]
[380146478,1755575438084,-5206.00624275,9.848e-05,2]
[380146479,1755575438094,-1435.28736431,9.848e-05,2]
[380146480,1755575438184,-3564.71263569,9.848e-05,2]
[380146481,1755575438194,-22153.28735987,9.85e-05,2]
[380146482,1755575438205,-510.00112626,9.85e-05,2]
[380146655,1755575440076,-1154.4228,9.85e-05,2]
[380146672,1755575440237,-426.33,9.85e-05,2]
[380146680,1755575440305,-1101.06932684,9.85e-05,2]
[380146682,1755575440317,-109.34506062,9.85e-05,2]
[380146684,1755575440326,-68390.91407994,9.85e-05,2]
[380146686,1755575440336,-150.0,9.888e-05,2]
[380146688,1755575440345,-150.44856314,9.888e-05,2]
[380146690,1755575440354,-150.0,9.888e-05,2]
[380146692,1755575440364,-150.0,9.888e-05,2]
[380146694,1755575440373,-150.40441136,9.888e-05,2]
[380146696,1755575440382,-259.0538687,9.888e-05,2]
[380146698,1755575440392,-150.0,9.888e-05,2]
[380146700,1755575440401,-265.03609096,9.888e-05,2]
[380146702,1755575440411,-163.22999999,9.888e-05,2]
[380146704,1755575440420,-157.2319201,9.888e-05,2]
[380146706,1755575440430,-2600.0,9.9e-05,3]
[380146708,1755575440439,-159.0,9.9e-05,3]
[380146710,1755575440449,-159.0,9.9e-05,3]
[380146712,1755575440458,-159.0,9.9e-05,2]
[380146714,1755575440467,-159.0,9.9e-05,3]
[380146715,1755575440477,-167.03,9.9e-05,2]
[380146717,1755575440487,-331.86,9.9e-05,2]
[380146719,1755575440497,-165.94,9.9e-05,2]
[380146722,1755575440509,-235.01,9.917e-05,2]
[380146724,1755575440519,-501.56659054,9.923e-05,2]
[380146726,1755575440528,-500.0,9.923e-05,2]
[380146728,1755575440537,-500.0,9.923e-05,2]
[380146730,1755575440547,-500.0,9.923e-05,2]
[380146732,1755575440556,-485.90364834,9.923e-05,2]
[380146734,1755575440565,-500.0,9.923e-05,2]
[380146736,1755575440575,-500.0,9.923e-05,2]
[380146738,1755575440584,-500.0,9.923e-05,2]
[380146739,1755575440594,-500.0,9.923e-05,2]
[380146742,1755575440604,-514.78035751,9.923e-05,2]
[380146743,1755575440613,-500.0,9.923e-05,2]
[380146745,1755575440622,-500.0,9.923e-05,2]
[380146747,1755575440632,-500.0,9.923e-05,2]
[380146749,1755575440641,-500.0,9.923e-05,2]
[380146751,1755575440651,-500.0,9.923e-05,2]
[380146753,1755575440661,-500.0,9.923e-05,2]
[380146755,1755575440670,-330.65,9.93e-05,2]